{"text_format":"1","workbook":"xlsx","n_sheets":1,"sheets":["Inventarverzeichnis"],"not_rendered":{"charts":0,"images":0,"macros":1,"external_links":0,"defined_names":2,"comments":0,"pivot_tables":0},"unopened":[],"bounds":{"document_bytes":16777216,"sheet_cells":100000,"rows_first":2000,"rows_last":500,"rows_between":2000,"halvings":0,"cell_chars":16384,"cell_head_chars":4096},"cells_cut":0,"cells_raw":0,"read":"whole","date_system":"1900"}

{"sheet":"Inventarverzeichnis","index":0,"n_rows":33,"n_cols":18,"rows_kept":33,"cut":false,"hidden":false,"merged":[[32,1,32,12]]}
[null,null,null,null,null,null,null,null,null,null,null,null,null,null,null,null,null,1]
["                                      Inventarverzeichnis / Stand 31.12.2025"]
[]
["Nr.","Datum der Beschaffung","Anzahl","Beschreibung des Gegenstandes","Neuwert","Ende der Abschrei-bung","Lauf-zeit in Jahren","Spalte1","Wert nach Ende der Abschreibung","Monatlicher Abschreibungswert","Heutiges Datum","Lauf-zeit bisher","Abschreibung","Zeitwert","Standort oder Benutzer"]
[{"$f":"ROW()-4","v":1},"2021-12-01",1,"Fernseher",699,null,3,{"$f":"IF(Inventarverzeichnis[[#This Row],[Neuwert]]>0,Inventarverzeichnis[[#This Row],[Lauf-zeit in Jahren]]*12,\"\")","v":36},{"$f":"$R$1","v":1},{"$f":"IF(Inventarverzeichnis[[#This Row],[Neuwert]]>0,SLN(Inventarverzeichnis[[#This Row],[Neuwert]],Inventarverzeichnis[[#This Row],[Wert nach Ende der Abschreibung]],Inventarverzeichnis[[#This Row],[Lauf-zeit in Jahren]])/12,\"\")","v":19.388888888888889},{"$f":"IF(Inventarverzeichnis[[#This Row],[Neuwert]]>0,TODAY(),\"\")","v":"2026-03-04"},{"$f":"IF(Inventarverzeichnis[[#This Row],[Neuwert]]>0,DATEDIF(Inventarverzeichnis[[#This Row],[Datum der Beschaffung]],Inventarverzeichnis[[#This Row],[Heutiges Datum]],\"m\"),\"\")","v":51},{"$f":"IF(Inventarverzeichnis[[#This Row],[Neuwert]]>0,Inventarverzeichnis[[#This Row],[Neuwert]]-Inventarverzeichnis[[#This Row],[Monatlicher Abschreibungswert]]*Inventarverzeichnis[[#This Row],[Lauf-zeit bisher]],\"\")","v":-289.83333333333337},{"$f":"IF(Inventarverzeichnis[[#This Row],[Abschreibung]]>1,Inventarverzeichnis[[#This Row],[Abschreibung]],1)","v":1},"Gst"]
[{"$f":"ROW()-4","v":2},"2021-12-01",1,"Notebook",649,null,3,{"$f":"IF(Inventarverzeichnis[[#This Row],[Neuwert]]>0,Inventarverzeichnis[[#This Row],[Lauf-zeit in Jahren]]*12,\"\")","v":36},1,{"$f":"IF(Inventarverzeichnis[[#This Row],[Neuwert]]>0,SLN(Inventarverzeichnis[[#This Row],[Neuwert]],Inventarverzeichnis[[#This Row],[Wert nach Ende der Abschreibung]],Inventarverzeichnis[[#This Row],[Lauf-zeit in Jahren]])/12,\"\")","v":18},{"$f":"IF(Inventarverzeichnis[[#This Row],[Neuwert]]>0,TODAY(),\"\")","v":"2026-03-04"},{"$f":"IF(Inventarverzeichnis[[#This Row],[Neuwert]]>0,DATEDIF(Inventarverzeichnis[[#This Row],[Datum der Beschaffung]],Inventarverzeichnis[[#This Row],[Heutiges Datum]],\"m\"),\"\")","v":51},{"$f":"IF(Inventarverzeichnis[[#This Row],[Neuwert]]>0,Inventarverzeichnis[[#This Row],[Neuwert]]-Inventarverzeichnis[[#This Row],[Monatlicher Abschreibungswert]]*Inventarverzeichnis[[#This Row],[Lauf-zeit bisher]],\"\")","v":-269},{"$f":"IF(Inventarverzeichnis[[#This Row],[Abschreibung]]>1,Inventarverzeichnis[[#This Row],[Abschreibung]],1)","v":1},"Vors."]
[3,"2021-12-01",1,"Notebook",649,null,3,{"$f":"IF(Inventarverzeichnis[[#This Row],[Neuwert]]>0,Inventarverzeichnis[[#This Row],[Lauf-zeit in Jahren]]*12,\"\")","v":36},1,{"$f":"IF(Inventarverzeichnis[[#This Row],[Neuwert]]>0,SLN(Inventarverzeichnis[[#This Row],[Neuwert]],Inventarverzeichnis[[#This Row],[Wert nach Ende der Abschreibung]],Inventarverzeichnis[[#This Row],[Lauf-zeit in Jahren]])/12,\"\")","v":18},{"$f":"IF(Inventarverzeichnis[[#This Row],[Neuwert]]>0,TODAY(),\"\")","v":"2026-03-04"},{"$f":"IF(Inventarverzeichnis[[#This Row],[Neuwert]]>0,DATEDIF(Inventarverzeichnis[[#This Row],[Datum der Beschaffung]],Inventarverzeichnis[[#This Row],[Heutiges Datum]],\"m\"),\"\")","v":51},{"$f":"IF(Inventarverzeichnis[[#This Row],[Neuwert]]>0,Inventarverzeichnis[[#This Row],[Neuwert]]-Inventarverzeichnis[[#This Row],[Monatlicher Abschreibungswert]]*Inventarverzeichnis[[#This Row],[Lauf-zeit bisher]],\"\")","v":-269},{"$f":"IF(Inventarverzeichnis[[#This Row],[Abschreibung]]>1,Inventarverzeichnis[[#This Row],[Abschreibung]],1)","v":1},"Stellv."]
[4,"2022-01-01",18,"Stühle",1520,null,8,{"$f":"IF(Inventarverzeichnis[[#This Row],[Neuwert]]>0,Inventarverzeichnis[[#This Row],[Lauf-zeit in Jahren]]*12,\"\")","v":96},1,{"$f":"IF(Inventarverzeichnis[[#This Row],[Neuwert]]>0,SLN(Inventarverzeichnis[[#This Row],[Neuwert]],Inventarverzeichnis[[#This Row],[Wert nach Ende der Abschreibung]],Inventarverzeichnis[[#This Row],[Lauf-zeit in Jahren]])/12,\"\")","v":15.822916666666666},{"$f":"IF(Inventarverzeichnis[[#This Row],[Neuwert]]>0,TODAY(),\"\")","v":"2026-03-04"},{"$f":"IF(Inventarverzeichnis[[#This Row],[Neuwert]]>0,DATEDIF(Inventarverzeichnis[[#This Row],[Datum der Beschaffung]],Inventarverzeichnis[[#This Row],[Heutiges Datum]],\"m\"),\"\")","v":50},{"$f":"IF(Inventarverzeichnis[[#This Row],[Neuwert]]>0,Inventarverzeichnis[[#This Row],[Neuwert]]-Inventarverzeichnis[[#This Row],[Monatlicher Abschreibungswert]]*Inventarverzeichnis[[#This Row],[Lauf-zeit bisher]],\"\")","v":728.85416666666674},{"$f":"IF(Inventarverzeichnis[[#This Row],[Abschreibung]]>1,Inventarverzeichnis[[#This Row],[Abschreibung]],1)","v":728.85416666666674},"Gst"]
[5,"2022-01-01",1,"Tisch",339.9,null,8,{"$f":"IF(Inventarverzeichnis[[#This Row],[Neuwert]]>0,Inventarverzeichnis[[#This Row],[Lauf-zeit in Jahren]]*12,\"\")","v":96},1,{"$f":"IF(Inventarverzeichnis[[#This Row],[Neuwert]]>0,SLN(Inventarverzeichnis[[#This Row],[Neuwert]],Inventarverzeichnis[[#This Row],[Wert nach Ende der Abschreibung]],Inventarverzeichnis[[#This Row],[Lauf-zeit in Jahren]])/12,\"\")","v":3.5302083333333329},{"$f":"IF(Inventarverzeichnis[[#This Row],[Neuwert]]>0,TODAY(),\"\")","v":"2026-03-04"},{"$f":"IF(Inventarverzeichnis[[#This Row],[Neuwert]]>0,DATEDIF(Inventarverzeichnis[[#This Row],[Datum der Beschaffung]],Inventarverzeichnis[[#This Row],[Heutiges Datum]],\"m\"),\"\")","v":50},{"$f":"IF(Inventarverzeichnis[[#This Row],[Neuwert]]>0,Inventarverzeichnis[[#This Row],[Neuwert]]-Inventarverzeichnis[[#This Row],[Monatlicher Abschreibungswert]]*Inventarverzeichnis[[#This Row],[Lauf-zeit bisher]],\"\")","v":163.38958333333332},{"$f":"IF(Inventarverzeichnis[[#This Row],[Abschreibung]]>1,Inventarverzeichnis[[#This Row],[Abschreibung]],1)","v":163.38958333333332},"Gst"]
[6,"2022-03-01",1,"TV-Wagen",76.989999999999995,null,8,{"$f":"IF(Inventarverzeichnis[[#This Row],[Neuwert]]>0,Inventarverzeichnis[[#This Row],[Lauf-zeit in Jahren]]*12,\"\")","v":96},1,{"$f":"IF(Inventarverzeichnis[[#This Row],[Neuwert]]>0,SLN(Inventarverzeichnis[[#This Row],[Neuwert]],Inventarverzeichnis[[#This Row],[Wert nach Ende der Abschreibung]],Inventarverzeichnis[[#This Row],[Lauf-zeit in Jahren]])/12,\"\")","v":0.79156249999999995},{"$f":"IF(Inventarverzeichnis[[#This Row],[Neuwert]]>0,TODAY(),\"\")","v":"2026-03-04"},{"$f":"IF(Inventarverzeichnis[[#This Row],[Neuwert]]>0,DATEDIF(Inventarverzeichnis[[#This Row],[Datum der Beschaffung]],Inventarverzeichnis[[#This Row],[Heutiges Datum]],\"m\"),\"\")","v":48},{"$f":"IF(Inventarverzeichnis[[#This Row],[Neuwert]]>0,Inventarverzeichnis[[#This Row],[Neuwert]]-Inventarverzeichnis[[#This Row],[Monatlicher Abschreibungswert]]*Inventarverzeichnis[[#This Row],[Lauf-zeit bisher]],\"\")","v":38.994999999999997},{"$f":"IF(Inventarverzeichnis[[#This Row],[Abschreibung]]>1,Inventarverzeichnis[[#This Row],[Abschreibung]],1)","v":38.994999999999997},"Gst"]
[7,"2022-07-01",2,"Mikrofon-Ständer",112.98,null,3,{"$f":"IF(Inventarverzeichnis[[#This Row],[Neuwert]]>0,Inventarverzeichnis[[#This Row],[Lauf-zeit in Jahren]]*12,\"\")","v":36},1,{"$f":"IF(Inventarverzeichnis[[#This Row],[Neuwert]]>0,SLN(Inventarverzeichnis[[#This Row],[Neuwert]],Inventarverzeichnis[[#This Row],[Wert nach Ende der Abschreibung]],Inventarverzeichnis[[#This Row],[Lauf-zeit in Jahren]])/12,\"\")","v":3.1105555555555555},{"$f":"IF(Inventarverzeichnis[[#This Row],[Neuwert]]>0,TODAY(),\"\")","v":"2026-03-04"},{"$f":"IF(Inventarverzeichnis[[#This Row],[Neuwert]]>0,DATEDIF(Inventarverzeichnis[[#This Row],[Datum der Beschaffung]],Inventarverzeichnis[[#This Row],[Heutiges Datum]],\"m\"),\"\")","v":44},{"$f":"IF(Inventarverzeichnis[[#This Row],[Neuwert]]>0,Inventarverzeichnis[[#This Row],[Neuwert]]-Inventarverzeichnis[[#This Row],[Monatlicher Abschreibungswert]]*Inventarverzeichnis[[#This Row],[Lauf-zeit bisher]],\"\")","v":-23.884444444444441},{"$f":"IF(Inventarverzeichnis[[#This Row],[Abschreibung]]>1,Inventarverzeichnis[[#This Row],[Abschreibung]],1)","v":1},"Gst"]
[8,"2022-08-01",1,"Monitor",173.99,null,3,{"$f":"IF(Inventarverzeichnis[[#This Row],[Neuwert]]>0,Inventarverzeichnis[[#This Row],[Lauf-zeit in Jahren]]*12,\"\")","v":36},1,{"$f":"IF(Inventarverzeichnis[[#This Row],[Neuwert]]>0,SLN(Inventarverzeichnis[[#This Row],[Neuwert]],Inventarverzeichnis[[#This Row],[Wert nach Ende der Abschreibung]],Inventarverzeichnis[[#This Row],[Lauf-zeit in Jahren]])/12,\"\")","v":4.8052777777777775},{"$f":"IF(Inventarverzeichnis[[#This Row],[Neuwert]]>0,TODAY(),\"\")","v":"2026-03-04"},{"$f":"IF(Inventarverzeichnis[[#This Row],[Neuwert]]>0,DATEDIF(Inventarverzeichnis[[#This Row],[Datum der Beschaffung]],Inventarverzeichnis[[#This Row],[Heutiges Datum]],\"m\"),\"\")","v":43},{"$f":"IF(Inventarverzeichnis[[#This Row],[Neuwert]]>0,Inventarverzeichnis[[#This Row],[Neuwert]]-Inventarverzeichnis[[#This Row],[Monatlicher Abschreibungswert]]*Inventarverzeichnis[[#This Row],[Lauf-zeit bisher]],\"\")","v":-32.636944444444424},{"$f":"IF(Inventarverzeichnis[[#This Row],[Abschreibung]]>1,Inventarverzeichnis[[#This Row],[Abschreibung]],1)","v":1},"Gst"]
[9,"2023-06-01",1,"Alu-Gartengarnitur",279.95,null,8,{"$f":"IF(Inventarverzeichnis[[#This Row],[Neuwert]]>0,Inventarverzeichnis[[#This Row],[Lauf-zeit in Jahren]]*12,\"\")","v":96},1,{"$f":"IF(Inventarverzeichnis[[#This Row],[Neuwert]]>0,SLN(Inventarverzeichnis[[#This Row],[Neuwert]],Inventarverzeichnis[[#This Row],[Wert nach Ende der Abschreibung]],Inventarverzeichnis[[#This Row],[Lauf-zeit in Jahren]])/12,\"\")","v":2.9057291666666667},{"$f":"IF(Inventarverzeichnis[[#This Row],[Neuwert]]>0,TODAY(),\"\")","v":"2026-03-04"},{"$f":"IF(Inventarverzeichnis[[#This Row],[Neuwert]]>0,DATEDIF(Inventarverzeichnis[[#This Row],[Datum der Beschaffung]],Inventarverzeichnis[[#This Row],[Heutiges Datum]],\"m\"),\"\")","v":33},{"$f":"IF(Inventarverzeichnis[[#This Row],[Neuwert]]>0,Inventarverzeichnis[[#This Row],[Neuwert]]-Inventarverzeichnis[[#This Row],[Monatlicher Abschreibungswert]]*Inventarverzeichnis[[#This Row],[Lauf-zeit bisher]],\"\")","v":184.06093749999999},{"$f":"IF(Inventarverzeichnis[[#This Row],[Abschreibung]]>1,Inventarverzeichnis[[#This Row],[Abschreibung]],1)","v":184.06093749999999},"Gst"]
[10,"2023-08-01",2,"Monitor",235.98,null,3,{"$f":"IF(Inventarverzeichnis[[#This Row],[Neuwert]]>0,Inventarverzeichnis[[#This Row],[Lauf-zeit in Jahren]]*12,\"\")","v":36},1,{"$f":"IF(Inventarverzeichnis[[#This Row],[Neuwert]]>0,SLN(Inventarverzeichnis[[#This Row],[Neuwert]],Inventarverzeichnis[[#This Row],[Wert nach Ende der Abschreibung]],Inventarverzeichnis[[#This Row],[Lauf-zeit in Jahren]])/12,\"\")","v":6.527222222222222},{"$f":"IF(Inventarverzeichnis[[#This Row],[Neuwert]]>0,TODAY(),\"\")","v":"2026-03-04"},{"$f":"IF(Inventarverzeichnis[[#This Row],[Neuwert]]>0,DATEDIF(Inventarverzeichnis[[#This Row],[Datum der Beschaffung]],Inventarverzeichnis[[#This Row],[Heutiges Datum]],\"m\"),\"\")","v":31},{"$f":"IF(Inventarverzeichnis[[#This Row],[Neuwert]]>0,Inventarverzeichnis[[#This Row],[Neuwert]]-Inventarverzeichnis[[#This Row],[Monatlicher Abschreibungswert]]*Inventarverzeichnis[[#This Row],[Lauf-zeit bisher]],\"\")","v":33.63611111111112},{"$f":"IF(Inventarverzeichnis[[#This Row],[Abschreibung]]>1,Inventarverzeichnis[[#This Row],[Abschreibung]],1)","v":33.63611111111112},"Gst"]
[11,"2023-11-01",1,"Standtheke",264.13,null,8,{"$f":"IF(Inventarverzeichnis[[#This Row],[Neuwert]]>0,Inventarverzeichnis[[#This Row],[Lauf-zeit in Jahren]]*12,\"\")","v":96},1,{"$f":"IF(Inventarverzeichnis[[#This Row],[Neuwert]]>0,SLN(Inventarverzeichnis[[#This Row],[Neuwert]],Inventarverzeichnis[[#This Row],[Wert nach Ende der Abschreibung]],Inventarverzeichnis[[#This Row],[Lauf-zeit in Jahren]])/12,\"\")","v":2.7409374999999998},{"$f":"IF(Inventarverzeichnis[[#This Row],[Neuwert]]>0,TODAY(),\"\")","v":"2026-03-04"},{"$f":"IF(Inventarverzeichnis[[#This Row],[Neuwert]]>0,DATEDIF(Inventarverzeichnis[[#This Row],[Datum der Beschaffung]],Inventarverzeichnis[[#This Row],[Heutiges Datum]],\"m\"),\"\")","v":28},{"$f":"IF(Inventarverzeichnis[[#This Row],[Neuwert]]>0,Inventarverzeichnis[[#This Row],[Neuwert]]-Inventarverzeichnis[[#This Row],[Monatlicher Abschreibungswert]]*Inventarverzeichnis[[#This Row],[Lauf-zeit bisher]],\"\")","v":187.38375000000002},{"$f":"IF(Inventarverzeichnis[[#This Row],[Abschreibung]]>1,Inventarverzeichnis[[#This Row],[Abschreibung]],1)","v":187.38375000000002},"Jugend"]
[12,"2024-02-01",1,"Computer",496,null,3,{"$f":"IF(Inventarverzeichnis[[#This Row],[Neuwert]]>0,Inventarverzeichnis[[#This Row],[Lauf-zeit in Jahren]]*12,\"\")","v":36},1,{"$f":"IF(Inventarverzeichnis[[#This Row],[Neuwert]]>0,SLN(Inventarverzeichnis[[#This Row],[Neuwert]],Inventarverzeichnis[[#This Row],[Wert nach Ende der Abschreibung]],Inventarverzeichnis[[#This Row],[Lauf-zeit in Jahren]])/12,\"\")","v":13.75},{"$f":"IF(Inventarverzeichnis[[#This Row],[Neuwert]]>0,TODAY(),\"\")","v":"2026-03-04"},{"$f":"IF(Inventarverzeichnis[[#This Row],[Neuwert]]>0,DATEDIF(Inventarverzeichnis[[#This Row],[Datum der Beschaffung]],Inventarverzeichnis[[#This Row],[Heutiges Datum]],\"m\"),\"\")","v":25},{"$f":"IF(Inventarverzeichnis[[#This Row],[Neuwert]]>0,Inventarverzeichnis[[#This Row],[Neuwert]]-Inventarverzeichnis[[#This Row],[Monatlicher Abschreibungswert]]*Inventarverzeichnis[[#This Row],[Lauf-zeit bisher]],\"\")","v":152.25},{"$f":"IF(Inventarverzeichnis[[#This Row],[Abschreibung]]>1,Inventarverzeichnis[[#This Row],[Abschreibung]],1)","v":152.25},"Stellv."]
[13,"2024-02-01",1,"JBL-Lautsprecher",429.99,null,3,{"$f":"IF(Inventarverzeichnis[[#This Row],[Neuwert]]>0,Inventarverzeichnis[[#This Row],[Lauf-zeit in Jahren]]*12,\"\")","v":36},1,{"$f":"IF(Inventarverzeichnis[[#This Row],[Neuwert]]>0,SLN(Inventarverzeichnis[[#This Row],[Neuwert]],Inventarverzeichnis[[#This Row],[Wert nach Ende der Abschreibung]],Inventarverzeichnis[[#This Row],[Lauf-zeit in Jahren]])/12,\"\")","v":11.916388888888889},{"$f":"IF(Inventarverzeichnis[[#This Row],[Neuwert]]>0,TODAY(),\"\")","v":"2026-03-04"},{"$f":"IF(Inventarverzeichnis[[#This Row],[Neuwert]]>0,DATEDIF(Inventarverzeichnis[[#This Row],[Datum der Beschaffung]],Inventarverzeichnis[[#This Row],[Heutiges Datum]],\"m\"),\"\")","v":25},{"$f":"IF(Inventarverzeichnis[[#This Row],[Neuwert]]>0,Inventarverzeichnis[[#This Row],[Neuwert]]-Inventarverzeichnis[[#This Row],[Monatlicher Abschreibungswert]]*Inventarverzeichnis[[#This Row],[Lauf-zeit bisher]],\"\")","v":132.08027777777778},{"$f":"IF(Inventarverzeichnis[[#This Row],[Abschreibung]]>1,Inventarverzeichnis[[#This Row],[Abschreibung]],1)","v":132.08027777777778},"Gst"]
[14,"2025-02-01",1,"GEEKOM Mini-PC",829,null,3,{"$f":"IF(Inventarverzeichnis[[#This Row],[Neuwert]]>0,Inventarverzeichnis[[#This Row],[Lauf-zeit in Jahren]]*12,\"\")","v":36},1,{"$f":"IF(Inventarverzeichnis[[#This Row],[Neuwert]]>0,SLN(Inventarverzeichnis[[#This Row],[Neuwert]],Inventarverzeichnis[[#This Row],[Wert nach Ende der Abschreibung]],Inventarverzeichnis[[#This Row],[Lauf-zeit in Jahren]])/12,\"\")","v":23},{"$f":"IF(Inventarverzeichnis[[#This Row],[Neuwert]]>0,TODAY(),\"\")","v":"2026-03-04"},{"$f":"IF(Inventarverzeichnis[[#This Row],[Neuwert]]>0,DATEDIF(Inventarverzeichnis[[#This Row],[Datum der Beschaffung]],Inventarverzeichnis[[#This Row],[Heutiges Datum]],\"m\"),\"\")","v":13},{"$f":"IF(Inventarverzeichnis[[#This Row],[Neuwert]]>0,Inventarverzeichnis[[#This Row],[Neuwert]]-Inventarverzeichnis[[#This Row],[Monatlicher Abschreibungswert]]*Inventarverzeichnis[[#This Row],[Lauf-zeit bisher]],\"\")","v":530},{"$f":"IF(Inventarverzeichnis[[#This Row],[Abschreibung]]>1,Inventarverzeichnis[[#This Row],[Abschreibung]],1)","v":530},"Gst"]
[15,"2025-02-01",1,"Computer-Kamera L22-2K",64.989999999999995,null,3,{"$f":"IF(Inventarverzeichnis[[#This Row],[Neuwert]]>0,Inventarverzeichnis[[#This Row],[Lauf-zeit in Jahren]]*12,\"\")","v":36},1,{"$f":"IF(Inventarverzeichnis[[#This Row],[Neuwert]]>0,SLN(Inventarverzeichnis[[#This Row],[Neuwert]],Inventarverzeichnis[[#This Row],[Wert nach Ende der Abschreibung]],Inventarverzeichnis[[#This Row],[Lauf-zeit in Jahren]])/12,\"\")","v":1.7774999999999999},{"$f":"IF(Inventarverzeichnis[[#This Row],[Neuwert]]>0,TODAY(),\"\")","v":"2026-03-04"},{"$f":"IF(Inventarverzeichnis[[#This Row],[Neuwert]]>0,DATEDIF(Inventarverzeichnis[[#This Row],[Datum der Beschaffung]],Inventarverzeichnis[[#This Row],[Heutiges Datum]],\"m\"),\"\")","v":13},{"$f":"IF(Inventarverzeichnis[[#This Row],[Neuwert]]>0,Inventarverzeichnis[[#This Row],[Neuwert]]-Inventarverzeichnis[[#This Row],[Monatlicher Abschreibungswert]]*Inventarverzeichnis[[#This Row],[Lauf-zeit bisher]],\"\")","v":41.882499999999993},{"$f":"IF(Inventarverzeichnis[[#This Row],[Abschreibung]]>1,Inventarverzeichnis[[#This Row],[Abschreibung]],1)","v":41.882499999999993},"Gst"]
[16,"2025-02-01",1,"Esszimmertisch",93.9,null,8,{"$f":"IF(Inventarverzeichnis[[#This Row],[Neuwert]]>0,Inventarverzeichnis[[#This Row],[Lauf-zeit in Jahren]]*12,\"\")","v":96},1,{"$f":"IF(Inventarverzeichnis[[#This Row],[Neuwert]]>0,SLN(Inventarverzeichnis[[#This Row],[Neuwert]],Inventarverzeichnis[[#This Row],[Wert nach Ende der Abschreibung]],Inventarverzeichnis[[#This Row],[Lauf-zeit in Jahren]])/12,\"\")","v":0.96770833333333339},{"$f":"IF(Inventarverzeichnis[[#This Row],[Neuwert]]>0,TODAY(),\"\")","v":"2026-03-04"},{"$f":"IF(Inventarverzeichnis[[#This Row],[Neuwert]]>0,DATEDIF(Inventarverzeichnis[[#This Row],[Datum der Beschaffung]],Inventarverzeichnis[[#This Row],[Heutiges Datum]],\"m\"),\"\")","v":13},{"$f":"IF(Inventarverzeichnis[[#This Row],[Neuwert]]>0,Inventarverzeichnis[[#This Row],[Neuwert]]-Inventarverzeichnis[[#This Row],[Monatlicher Abschreibungswert]]*Inventarverzeichnis[[#This Row],[Lauf-zeit bisher]],\"\")","v":81.319791666666674},{"$f":"IF(Inventarverzeichnis[[#This Row],[Abschreibung]]>1,Inventarverzeichnis[[#This Row],[Abschreibung]],1)","v":81.319791666666674},"Gst"]
[17,"2025-02-01",2,"HDMI- und USB-Kabel",79.94,null,8,{"$f":"IF(Inventarverzeichnis[[#This Row],[Neuwert]]>0,Inventarverzeichnis[[#This Row],[Lauf-zeit in Jahren]]*12,\"\")","v":96},1,{"$f":"IF(Inventarverzeichnis[[#This Row],[Neuwert]]>0,SLN(Inventarverzeichnis[[#This Row],[Neuwert]],Inventarverzeichnis[[#This Row],[Wert nach Ende der Abschreibung]],Inventarverzeichnis[[#This Row],[Lauf-zeit in Jahren]])/12,\"\")","v":0.82229166666666664},{"$f":"IF(Inventarverzeichnis[[#This Row],[Neuwert]]>0,TODAY(),\"\")","v":"2026-03-04"},{"$f":"IF(Inventarverzeichnis[[#This Row],[Neuwert]]>0,DATEDIF(Inventarverzeichnis[[#This Row],[Datum der Beschaffung]],Inventarverzeichnis[[#This Row],[Heutiges Datum]],\"m\"),\"\")","v":13},{"$f":"IF(Inventarverzeichnis[[#This Row],[Neuwert]]>0,Inventarverzeichnis[[#This Row],[Neuwert]]-Inventarverzeichnis[[#This Row],[Monatlicher Abschreibungswert]]*Inventarverzeichnis[[#This Row],[Lauf-zeit bisher]],\"\")","v":69.250208333333333},{"$f":"IF(Inventarverzeichnis[[#This Row],[Abschreibung]]>1,Inventarverzeichnis[[#This Row],[Abschreibung]],1)","v":69.250208333333333},"Gst"]
[18,"2025-02-01",2,"Tisch-Einbau-Steckdose",132.97,null,8,{"$f":"IF(Inventarverzeichnis[[#This Row],[Neuwert]]>0,Inventarverzeichnis[[#This Row],[Lauf-zeit in Jahren]]*12,\"\")","v":96},1,{"$f":"IF(Inventarverzeichnis[[#This Row],[Neuwert]]>0,SLN(Inventarverzeichnis[[#This Row],[Neuwert]],Inventarverzeichnis[[#This Row],[Wert nach Ende der Abschreibung]],Inventarverzeichnis[[#This Row],[Lauf-zeit in Jahren]])/12,\"\")","v":1.3746875000000001},{"$f":"IF(Inventarverzeichnis[[#This Row],[Neuwert]]>0,TODAY(),\"\")","v":"2026-03-04"},{"$f":"IF(Inventarverzeichnis[[#This Row],[Neuwert]]>0,DATEDIF(Inventarverzeichnis[[#This Row],[Datum der Beschaffung]],Inventarverzeichnis[[#This Row],[Heutiges Datum]],\"m\"),\"\")","v":13},{"$f":"IF(Inventarverzeichnis[[#This Row],[Neuwert]]>0,Inventarverzeichnis[[#This Row],[Neuwert]]-Inventarverzeichnis[[#This Row],[Monatlicher Abschreibungswert]]*Inventarverzeichnis[[#This Row],[Lauf-zeit bisher]],\"\")","v":115.0990625},{"$f":"IF(Inventarverzeichnis[[#This Row],[Abschreibung]]>1,Inventarverzeichnis[[#This Row],[Abschreibung]],1)","v":115.0990625},"Gst"]
[19,"2025-02-01",1,"Schreibtisch",396.2,null,8,{"$f":"IF(Inventarverzeichnis[[#This Row],[Neuwert]]>0,Inventarverzeichnis[[#This Row],[Lauf-zeit in Jahren]]*12,\"\")","v":96},1,{"$f":"IF(Inventarverzeichnis[[#This Row],[Neuwert]]>0,SLN(Inventarverzeichnis[[#This Row],[Neuwert]],Inventarverzeichnis[[#This Row],[Wert nach Ende der Abschreibung]],Inventarverzeichnis[[#This Row],[Lauf-zeit in Jahren]])/12,\"\")","v":4.1166666666666663},{"$f":"IF(Inventarverzeichnis[[#This Row],[Neuwert]]>0,TODAY(),\"\")","v":"2026-03-04"},{"$f":"IF(Inventarverzeichnis[[#This Row],[Neuwert]]>0,DATEDIF(Inventarverzeichnis[[#This Row],[Datum der Beschaffung]],Inventarverzeichnis[[#This Row],[Heutiges Datum]],\"m\"),\"\")","v":13},{"$f":"IF(Inventarverzeichnis[[#This Row],[Neuwert]]>0,Inventarverzeichnis[[#This Row],[Neuwert]]-Inventarverzeichnis[[#This Row],[Monatlicher Abschreibungswert]]*Inventarverzeichnis[[#This Row],[Lauf-zeit bisher]],\"\")","v":342.68333333333334},{"$f":"IF(Inventarverzeichnis[[#This Row],[Abschreibung]]>1,Inventarverzeichnis[[#This Row],[Abschreibung]],1)","v":342.68333333333334},"Gst"]
[20,"2025-02-01",2,"Tischplatte",183.26,null,8,{"$f":"IF(Inventarverzeichnis[[#This Row],[Neuwert]]>0,Inventarverzeichnis[[#This Row],[Lauf-zeit in Jahren]]*12,\"\")","v":96},1,{"$f":"IF(Inventarverzeichnis[[#This Row],[Neuwert]]>0,SLN(Inventarverzeichnis[[#This Row],[Neuwert]],Inventarverzeichnis[[#This Row],[Wert nach Ende der Abschreibung]],Inventarverzeichnis[[#This Row],[Lauf-zeit in Jahren]])/12,\"\")","v":1.8985416666666666},{"$f":"IF(Inventarverzeichnis[[#This Row],[Neuwert]]>0,TODAY(),\"\")","v":"2026-03-04"},{"$f":"IF(Inventarverzeichnis[[#This Row],[Neuwert]]>0,DATEDIF(Inventarverzeichnis[[#This Row],[Datum der Beschaffung]],Inventarverzeichnis[[#This Row],[Heutiges Datum]],\"m\"),\"\")","v":13},{"$f":"IF(Inventarverzeichnis[[#This Row],[Neuwert]]>0,Inventarverzeichnis[[#This Row],[Neuwert]]-Inventarverzeichnis[[#This Row],[Monatlicher Abschreibungswert]]*Inventarverzeichnis[[#This Row],[Lauf-zeit bisher]],\"\")","v":158.57895833333333},{"$f":"IF(Inventarverzeichnis[[#This Row],[Abschreibung]]>1,Inventarverzeichnis[[#This Row],[Abschreibung]],1)","v":158.57895833333333},"Gst"]
[21,"2025-03-01",4,"Stühle",371.81,null,8,{"$f":"IF(Inventarverzeichnis[[#This Row],[Neuwert]]>0,Inventarverzeichnis[[#This Row],[Lauf-zeit in Jahren]]*12,\"\")","v":96},1,{"$f":"IF(Inventarverzeichnis[[#This Row],[Neuwert]]>0,SLN(Inventarverzeichnis[[#This Row],[Neuwert]],Inventarverzeichnis[[#This Row],[Wert nach Ende der Abschreibung]],Inventarverzeichnis[[#This Row],[Lauf-zeit in Jahren]])/12,\"\")","v":3.8626041666666668},{"$f":"IF(Inventarverzeichnis[[#This Row],[Neuwert]]>0,TODAY(),\"\")","v":"2026-03-04"},{"$f":"IF(Inventarverzeichnis[[#This Row],[Neuwert]]>0,DATEDIF(Inventarverzeichnis[[#This Row],[Datum der Beschaffung]],Inventarverzeichnis[[#This Row],[Heutiges Datum]],\"m\"),\"\")","v":12},{"$f":"IF(Inventarverzeichnis[[#This Row],[Neuwert]]>0,Inventarverzeichnis[[#This Row],[Neuwert]]-Inventarverzeichnis[[#This Row],[Monatlicher Abschreibungswert]]*Inventarverzeichnis[[#This Row],[Lauf-zeit bisher]],\"\")","v":325.45875000000001},{"$f":"IF(Inventarverzeichnis[[#This Row],[Abschreibung]]>1,Inventarverzeichnis[[#This Row],[Abschreibung]],1)","v":325.45875000000001},"Gst"]
[22,"2025-04-01",1,"Notebook",333.99,null,3,{"$f":"IF(Inventarverzeichnis[[#This Row],[Neuwert]]>0,Inventarverzeichnis[[#This Row],[Lauf-zeit in Jahren]]*12,\"\")","v":36},1,{"$f":"IF(Inventarverzeichnis[[#This Row],[Neuwert]]>0,SLN(Inventarverzeichnis[[#This Row],[Neuwert]],Inventarverzeichnis[[#This Row],[Wert nach Ende der Abschreibung]],Inventarverzeichnis[[#This Row],[Lauf-zeit in Jahren]])/12,\"\")","v":9.2497222222222231},{"$f":"IF(Inventarverzeichnis[[#This Row],[Neuwert]]>0,TODAY(),\"\")","v":"2026-03-04"},{"$f":"IF(Inventarverzeichnis[[#This Row],[Neuwert]]>0,DATEDIF(Inventarverzeichnis[[#This Row],[Datum der Beschaffung]],Inventarverzeichnis[[#This Row],[Heutiges Datum]],\"m\"),\"\")","v":11},{"$f":"IF(Inventarverzeichnis[[#This Row],[Neuwert]]>0,Inventarverzeichnis[[#This Row],[Neuwert]]-Inventarverzeichnis[[#This Row],[Monatlicher Abschreibungswert]]*Inventarverzeichnis[[#This Row],[Lauf-zeit bisher]],\"\")","v":232.24305555555554},{"$f":"IF(Inventarverzeichnis[[#This Row],[Abschreibung]]>1,Inventarverzeichnis[[#This Row],[Abschreibung]],1)","v":232.24305555555554},"Stellv."]
[23,"2025-04-01",9,"Stühle",1520.82,null,8,{"$f":"IF(Inventarverzeichnis[[#This Row],[Neuwert]]>0,Inventarverzeichnis[[#This Row],[Lauf-zeit in Jahren]]*12,\"\")","v":96},1,{"$f":"IF(Inventarverzeichnis[[#This Row],[Neuwert]]>0,SLN(Inventarverzeichnis[[#This Row],[Neuwert]],Inventarverzeichnis[[#This Row],[Wert nach Ende der Abschreibung]],Inventarverzeichnis[[#This Row],[Lauf-zeit in Jahren]])/12,\"\")","v":15.831458333333332},{"$f":"IF(Inventarverzeichnis[[#This Row],[Neuwert]]>0,TODAY(),\"\")","v":"2026-03-04"},{"$f":"IF(Inventarverzeichnis[[#This Row],[Neuwert]]>0,DATEDIF(Inventarverzeichnis[[#This Row],[Datum der Beschaffung]],Inventarverzeichnis[[#This Row],[Heutiges Datum]],\"m\"),\"\")","v":11},{"$f":"IF(Inventarverzeichnis[[#This Row],[Neuwert]]>0,Inventarverzeichnis[[#This Row],[Neuwert]]-Inventarverzeichnis[[#This Row],[Monatlicher Abschreibungswert]]*Inventarverzeichnis[[#This Row],[Lauf-zeit bisher]],\"\")","v":1346.6739583333333},{"$f":"IF(Inventarverzeichnis[[#This Row],[Abschreibung]]>1,Inventarverzeichnis[[#This Row],[Abschreibung]],1)","v":1346.6739583333333},"Gst"]
[24,"2025-04-01",2,"Tischplattenverbinder",62.4,null,8,{"$f":"IF(Inventarverzeichnis[[#This Row],[Neuwert]]>0,Inventarverzeichnis[[#This Row],[Lauf-zeit in Jahren]]*12,\"\")","v":96},1,{"$f":"IF(Inventarverzeichnis[[#This Row],[Neuwert]]>0,SLN(Inventarverzeichnis[[#This Row],[Neuwert]],Inventarverzeichnis[[#This Row],[Wert nach Ende der Abschreibung]],Inventarverzeichnis[[#This Row],[Lauf-zeit in Jahren]])/12,\"\")","v":0.63958333333333328},{"$f":"IF(Inventarverzeichnis[[#This Row],[Neuwert]]>0,TODAY(),\"\")","v":"2026-03-04"},{"$f":"IF(Inventarverzeichnis[[#This Row],[Neuwert]]>0,DATEDIF(Inventarverzeichnis[[#This Row],[Datum der Beschaffung]],Inventarverzeichnis[[#This Row],[Heutiges Datum]],\"m\"),\"\")","v":11},{"$f":"IF(Inventarverzeichnis[[#This Row],[Neuwert]]>0,Inventarverzeichnis[[#This Row],[Neuwert]]-Inventarverzeichnis[[#This Row],[Monatlicher Abschreibungswert]]*Inventarverzeichnis[[#This Row],[Lauf-zeit bisher]],\"\")","v":55.364583333333329},{"$f":"IF(Inventarverzeichnis[[#This Row],[Abschreibung]]>1,Inventarverzeichnis[[#This Row],[Abschreibung]],1)","v":55.364583333333329},"Gst"]
[25,"2025-05-01",2,"Bodenmatten",87.96,null,8,{"$f":"IF(Inventarverzeichnis[[#This Row],[Neuwert]]>0,Inventarverzeichnis[[#This Row],[Lauf-zeit in Jahren]]*12,\"\")","v":96},1,{"$f":"IF(Inventarverzeichnis[[#This Row],[Neuwert]]>0,SLN(Inventarverzeichnis[[#This Row],[Neuwert]],Inventarverzeichnis[[#This Row],[Wert nach Ende der Abschreibung]],Inventarverzeichnis[[#This Row],[Lauf-zeit in Jahren]])/12,\"\")","v":0.90583333333333327},{"$f":"IF(Inventarverzeichnis[[#This Row],[Neuwert]]>0,TODAY(),\"\")","v":"2026-03-04"},{"$f":"IF(Inventarverzeichnis[[#This Row],[Neuwert]]>0,DATEDIF(Inventarverzeichnis[[#This Row],[Datum der Beschaffung]],Inventarverzeichnis[[#This Row],[Heutiges Datum]],\"m\"),\"\")","v":10},{"$f":"IF(Inventarverzeichnis[[#This Row],[Neuwert]]>0,Inventarverzeichnis[[#This Row],[Neuwert]]-Inventarverzeichnis[[#This Row],[Monatlicher Abschreibungswert]]*Inventarverzeichnis[[#This Row],[Lauf-zeit bisher]],\"\")","v":78.901666666666657},{"$f":"IF(Inventarverzeichnis[[#This Row],[Abschreibung]]>1,Inventarverzeichnis[[#This Row],[Abschreibung]],1)","v":78.901666666666657},"Gst"]
[26,"2025-06-01",1,"Air Cooler",50,null,3,{"$f":"IF(Inventarverzeichnis[[#This Row],[Neuwert]]>0,Inventarverzeichnis[[#This Row],[Lauf-zeit in Jahren]]*12,\"\")","v":36},1,{"$f":"IF(Inventarverzeichnis[[#This Row],[Neuwert]]>0,SLN(Inventarverzeichnis[[#This Row],[Neuwert]],Inventarverzeichnis[[#This Row],[Wert nach Ende der Abschreibung]],Inventarverzeichnis[[#This Row],[Lauf-zeit in Jahren]])/12,\"\")","v":1.3611111111111109},{"$f":"IF(Inventarverzeichnis[[#This Row],[Neuwert]]>0,TODAY(),\"\")","v":"2026-03-04"},{"$f":"IF(Inventarverzeichnis[[#This Row],[Neuwert]]>0,DATEDIF(Inventarverzeichnis[[#This Row],[Datum der Beschaffung]],Inventarverzeichnis[[#This Row],[Heutiges Datum]],\"m\"),\"\")","v":9},{"$f":"IF(Inventarverzeichnis[[#This Row],[Neuwert]]>0,Inventarverzeichnis[[#This Row],[Neuwert]]-Inventarverzeichnis[[#This Row],[Monatlicher Abschreibungswert]]*Inventarverzeichnis[[#This Row],[Lauf-zeit bisher]],\"\")","v":37.75},{"$f":"IF(Inventarverzeichnis[[#This Row],[Abschreibung]]>1,Inventarverzeichnis[[#This Row],[Abschreibung]],1)","v":37.75},"Gst"]
[27,"2025-08-01",1,"Würstchenwärmer",312.95,null,3,{"$f":"IF(Inventarverzeichnis[[#This Row],[Neuwert]]>0,Inventarverzeichnis[[#This Row],[Lauf-zeit in Jahren]]*12,\"\")","v":36},1,{"$f":"IF(Inventarverzeichnis[[#This Row],[Neuwert]]>0,SLN(Inventarverzeichnis[[#This Row],[Neuwert]],Inventarverzeichnis[[#This Row],[Wert nach Ende der Abschreibung]],Inventarverzeichnis[[#This Row],[Lauf-zeit in Jahren]])/12,\"\")","v":8.6652777777777779},{"$f":"IF(Inventarverzeichnis[[#This Row],[Neuwert]]>0,TODAY(),\"\")","v":"2026-03-04"},{"$f":"IF(Inventarverzeichnis[[#This Row],[Neuwert]]>0,DATEDIF(Inventarverzeichnis[[#This Row],[Datum der Beschaffung]],Inventarverzeichnis[[#This Row],[Heutiges Datum]],\"m\"),\"\")","v":7},{"$f":"IF(Inventarverzeichnis[[#This Row],[Neuwert]]>0,Inventarverzeichnis[[#This Row],[Neuwert]]-Inventarverzeichnis[[#This Row],[Monatlicher Abschreibungswert]]*Inventarverzeichnis[[#This Row],[Lauf-zeit bisher]],\"\")","v":252.29305555555555},{"$f":"IF(Inventarverzeichnis[[#This Row],[Abschreibung]]>1,Inventarverzeichnis[[#This Row],[Abschreibung]],1)","v":252.29305555555555},"Gst"]
[28,"2025-12-01",2,"Bürosessel",369.98,null,8,{"$f":"IF(Inventarverzeichnis[[#This Row],[Neuwert]]>0,Inventarverzeichnis[[#This Row],[Lauf-zeit in Jahren]]*12,\"\")","v":96},1,{"$f":"IF(Inventarverzeichnis[[#This Row],[Neuwert]]>0,SLN(Inventarverzeichnis[[#This Row],[Neuwert]],Inventarverzeichnis[[#This Row],[Wert nach Ende der Abschreibung]],Inventarverzeichnis[[#This Row],[Lauf-zeit in Jahren]])/12,\"\")","v":3.8435416666666669},{"$f":"IF(Inventarverzeichnis[[#This Row],[Neuwert]]>0,TODAY(),\"\")","v":"2026-03-04"},{"$f":"IF(Inventarverzeichnis[[#This Row],[Neuwert]]>0,DATEDIF(Inventarverzeichnis[[#This Row],[Datum der Beschaffung]],Inventarverzeichnis[[#This Row],[Heutiges Datum]],\"m\"),\"\")","v":3},{"$f":"IF(Inventarverzeichnis[[#This Row],[Neuwert]]>0,Inventarverzeichnis[[#This Row],[Neuwert]]-Inventarverzeichnis[[#This Row],[Monatlicher Abschreibungswert]]*Inventarverzeichnis[[#This Row],[Lauf-zeit bisher]],\"\")","v":358.44937500000003},{"$f":"IF(Inventarverzeichnis[[#This Row],[Abschreibung]]>1,Inventarverzeichnis[[#This Row],[Abschreibung]],1)","v":358.44937500000003},"Gst"]
[null,"Zeitwert des Sachwertvermögens:",null,null,null,null,null,null,null,null,null,null,null,{"$f":"SUM(N5:N32)","v":5651.5981250000013}]